fUST/lending_fUST_20260118
["ID","MTS","AMOUNT","RATE_DAILY","PERIOD"]
[402651990,1768745456244,-500.0,0.00027397,120]
[402651991,1768745456252,-500.0,0.00027397,120]
[402651992,1768745456262,-500.0,0.00027397,120]
[402651993,1768745456271,-500.0,0.00027397,120]
[402651994,1768745456281,-505.47852003,0.00027397,120]
[402651995,1768745456295,-500.0,0.00027397,120]
[402651996,1768745456305,-500.0,0.00027397,120]
[402651997,1768745456314,-500.0,0.00027397,120]
[402651998,1768745456324,-500.0,0.00027397,120]
[402651999,1768745456333,-500.0,0.00027397,120]
[402652000,1768745456342,-500.0,0.00027397,120]
[402652001,1768745456354,-500.0,0.00027397,120]
[402652002,1768745456364,-500.0,0.00027397,120]
[402652003,1768745456373,-500.0,0.00027397,120]
[402652004,1768745456382,-500.0,0.00027397,120]
[402652005,1768745456391,-500.0,0.00027397,120]
[402652006,1768745456401,-500.0,0.00027397,120]
[402652007,1768745456410,-500.0,0.00027397,120]
[402652008,1768745456420,-500.0,0.00027397,120]
[402652009,1768745456429,-461.45794468,0.00027397,120]
[402652010,1768745456439,-500.0,0.00027397,120]
[402652011,1768745456448,-500.0,0.00027397,120]
[402652012,1768745456459,-500.0,0.00027397,120]
[402652013,1768745456468,-500.0,0.00027397,120]
[402652014,1768745456478,-500.0,0.00027397,120]
[402652015,1768745456487,-500.0,0.00027397,120]
[402652016,1768745456496,-500.0,0.00027397,120]
[402652017,1768745456505,-500.0,0.00027397,120]
[402652018,1768745456515,-500.0,0.00027397,120]
[402652019,1768745456524,-500.0,0.00027397,120]
[402652020,1768745456534,-348.16,0.00027397,120]
[402652021,1768745456543,-500.0,0.00027397,120]
[402652022,1768745456553,-500.0,0.00027397,120]
[402652023,1768745456563,-500.0,0.00027397,120]
[402652024,1768745456573,-170.74936394,0.00027397,120]
[402652025,1768745456582,-993.56,0.00027397,120]
[402652026,1768745456592,-993.56,0.00027397,120]
[402652027,1768745456601,-993.56,0.00027397,120]
[402652028,1768745456610,-500.0,0.00027397,120]
[402652029,1768745456620,-993.56,0.00027397,120]
[402652030,1768745456629,-500.0,0.00027397,120]
[402652031,1768745456639,-500.0,0.00027397,120]
[402652032,1768745456648,-993.56,0.00027397,120]
[402652033,1768745456657,-500.0,0.00027397,120]
[402652034,1768745456667,-500.0,0.00027397,120]
[402652035,1768745456677,-500.0,0.00027397,120]
[402652036,1768745456686,-500.0,0.00027397,120]
[402652037,1768745456699,-500.0,0.00027397,120]
[402652038,1768745456709,-500.0,0.00027397,120]
[402652039,1768745456718,-993.56,0.00027397,120]
[402652040,1768745456728,-610.73870166,0.00027397,120]
[402652041,1768745456737,-500.0,0.00027397,120]
[402652042,1768745456746,-993.56,0.00027397,120]
[402652043,1768745456755,-500.0,0.00027397,120]
[402652044,1768745456765,-993.56,0.00027397,120]
[402652045,1768745456775,-500.0,0.00027397,120]
[402652046,1768745456784,-500.0,0.00027397,60]
[402652047,1768745456793,-993.56,0.00027397,120]
[402652048,1768745456805,-500.50831284,0.00027397,60]
[402652049,1768745456820,-993.56,0.00027397,120]
[402652050,1768745456829,-500.0,0.00027397,120]
[402652051,1768745456838,-993.56,0.00027397,120]
[402652052,1768745456847,-500.0,0.00027397,120]
[402652053,1768745456857,-993.56,0.00027397,120]
[402652054,1768745456866,-500.0,0.00027397,120]
[402652055,1768745456875,-993.56,0.00027397,120]
[402652056,1768745456884,-500.0,0.00027397,120]
[402652057,1768745456894,-500.0,0.00027397,120]
[402652058,1768745456903,-993.56,0.00027397,120]
[402652059,1768745456912,-993.56,0.00027397,120]
[402652060,1768745456921,-500.0,0.00027397,120]
[402652061,1768745456931,-500.0,0.00027397,120]
[402652062,1768745456940,-993.56,0.00027397,120]
[402652063,1768745456948,-500.0,0.00027397,120]
[402652064,1768745456957,-211.92839378,0.00027397,120]
[402652065,1768745456967,-993.56,0.00027397,120]
[402652066,1768745456975,-500.0,0.00027397,120]
[402652067,1768745456985,-993.56,0.00027397,120]
[402652068,1768745456994,-500.0,0.00027397,120]
[402652069,1768745457004,-500.0,0.00027397,120]
[402652070,1768745457012,-993.56,0.00027397,120]
[402652071,1768745457022,-500.0,0.00027397,120]
[402652072,1768745457031,-500.0,0.00027397,120]
[402652073,1768745457040,-993.56,0.00027397,120]
[402652074,1768745457049,-500.0,0.00027397,120]
[402652075,1768745457063,-500.0,0.00027397,120]
[402652076,1768745457072,-500.0,0.00027397,120]
[402652077,1768745457082,-993.56,0.00027397,120]
[402652078,1768745457091,-500.0,0.00027397,120]
[402652079,1768745457100,-500.0,0.00027397,120]
[402652080,1768745457110,-500.0,0.00027397,120]
[402652081,1768745457119,-993.56,0.00027397,120]
[402652082,1768745457128,-500.0,0.00027397,120]
[402652083,1768745457137,-500.0,0.00027397,120]
[402652084,1768745457146,-500.0,0.00027397,120]
[402652085,1768745457155,-993.56,0.00027397,120]
[402652086,1768745457164,-500.0,0.00027397,120]
[402652087,1768745457174,-500.0,0.00027397,120]
[402652088,1768745457183,-500.0,0.00027397,120]
[402652089,1768745457193,-993.63739655,0.00027397,120]
[402652090,1768745457202,-500.0,0.00027397,120]
[402652091,1768745457212,-340.65462156,0.00027397,120]
[402652092,1768745457400,-418.25597121,0.00027397,120]
[402652093,1768745457411,-500.0,0.00027397,120]
[402652094,1768745457425,-500.0,0.00027397,120]
[402652095,1768745457435,-500.0,0.00027397,120]
[402652096,1768745457444,-500.0,0.00027397,120]
[402652097,1768745457454,-500.0,0.00027397,120]
[402652098,1768745457464,-500.0,0.00027397,120]
[402652099,1768745457480,-500.0,0.00027397,120]
[402652100,1768745457489,-500.0,0.00027397,120]
[402652101,1768745457499,-500.0,0.00027397,120]
[402652102,1768745457508,-500.0,0.00027397,120]
[402652103,1768745457517,-500.0,0.00027397,120]
[402652104,1768745457526,-500.0,0.00027397,120]
[402652105,1768745457536,-500.0,0.00027397,120]
[402652106,1768745457545,-500.0,0.00027397,120]
[402652107,1768745457554,-500.0,0.00027397,120]
[402652108,1768745457563,-500.0,0.00027397,120]
[402652109,1768745457572,-500.0,0.00027397,120]
[402652110,1768745457581,-500.0,0.00027397,120]
[402652111,1768745457590,-500.0,0.00027397,120]
[402652112,1768745457599,-406.21,0.00027397,120]
[402652113,1768745457608,-500.0,0.00027397,120]
[402652114,1768745457617,-500.0,0.00027397,120]
[402652115,1768745457627,-500.0,0.00027397,120]
[402652116,1768745457636,-500.0,0.00027397,120]
[402652117,1768745457645,-500.0,0.00027397,120]
[402652118,1768745457654,-500.0,0.00027397,120]
[402652119,1768745457663,-500.0,0.00027397,120]
[402652120,1768745457673,-500.0,0.00027397,120]
[402652122,1768745457682,-500.0,0.00027397,120]
[402652123,1768745457691,-546.70910651,0.00027397,120]
[402652124,1768745457700,-500.0,0.00027397,120]
[402652125,1768745457710,-500.0,0.00027397,120]
[402652126,1768745457719,-500.0,0.00027397,120]
[402652127,1768745457729,-500.0,0.00027397,120]
[402652128,1768745457739,-500.0,0.00027397,120]
[402652129,1768745457748,-357.66114332,0.00027397,120]
[402652130,1768745457757,-500.0,0.00027397,120]
[402652131,1768745457767,-735.16,0.00027397,120]
[402652132,1768745457776,-500.0,0.00027397,120]
[402652133,1768745457786,-735.16,0.00027397,120]
[402652134,1768745457796,-500.0,0.00027397,120]
[402652135,1768745457806,-735.16,0.00027397,120]
[402652136,1768745457815,-500.0,0.00027397,120]
[402652137,1768745457824,-735.16,0.00027397,120]
[402652138,1768745457834,-500.0,0.00027397,120]
[402652139,1768745457843,-735.16,0.00027397,120]
[402652140,1768745457854,-500.0,0.00027397,120]
[402652141,1768745457863,-735.16,0.00027397,120]
[402652142,1768745457872,-500.0,0.00027397,120]
[402652143,1768745457886,-735.16,0.00027397,120]
[402652144,1768745457895,-500.0,0.00027397,120]
[402652145,1768745457904,-735.16,0.00027397,120]
[402652146,1768745457913,-500.0,0.00027397,120]
[402652147,1768745457922,-500.0,0.00027397,120]
[402652148,1768745457931,-735.16,0.00027397,120]
[402652149,1768745457939,-500.0,0.00027397,120]
[402652150,1768745457948,-500.0,0.00027397,120]
[402652151,1768745457957,-735.16,0.00027397,120]
[402652152,1768745457966,-500.0,0.00027397,120]
[402652153,1768745457975,-173.30711951,0.00027397,14]
[402652154,1768745457984,-500.0,0.00027397,120]
[402652155,1768745457994,-500.0,0.00027397,120]
[402652156,1768745458003,-500.0,0.00027397,120]
[402652157,1768745458012,-500.0,0.00027397,120]
[402652158,1768745458021,-735.16,0.00027397,120]
[402652159,1768745458030,-500.0,0.00027397,120]
[402652160,1768745458039,-409.80050814,0.00027397,120]
[402652161,1768745458048,-735.16,0.00027397,120]
[402652162,1768745458057,-500.0,0.00027397,120]
[402652163,1768745458066,-735.16,0.00027397,120]
[402652164,1768745458075,-500.0,0.00027397,120]
[402652165,1768745458084,-735.16,0.00027397,120]
[402652166,1768745458093,-735.16,0.00027397,120]
[402652167,1768745458102,-500.0,0.00027397,120]
[402652168,1768745458111,-735.16,0.00027397,120]
[402652169,1768745458120,-501.42716126,0.00027397,120]
[402652170,1768745458130,-735.16,0.00027397,120]
[402652171,1768745458138,-500.0,0.00027397,120]
[402652172,1768745458147,-735.16,0.00027397,120]
[402652173,1768745458156,-500.0,0.00027397,120]
[402652174,1768745458164,-735.16,0.00027397,120]
[402652175,1768745458173,-500.0,0.00027397,120]
[402652176,1768745458182,-500.0,0.00027397,120]
[402652177,1768745458191,-735.16,0.00027397,120]
[402652178,1768745458201,-500.0,0.00027397,120]
[402652179,1768745458209,-500.0,0.00027397,120]
[402652180,1768745458219,-735.16,0.00027397,120]
[402652181,1768745458227,-552.65108791,0.00027397,120]
[402652182,1768745458236,-184.49551859,0.00027397,120]
[402652183,1768745458245,-735.16,0.00027397,120]
[402652184,1768745458254,-735.16,0.00027397,120]
[402652185,1768745458263,-735.17739501,0.00027397,120]
[402652186,1768745458272,-575.86,0.00027397,120]
[402652187,1768745458281,-575.86,0.00027397,120]
[402652188,1768745458290,-575.86,0.00027397,120]
[402652189,1768745458298,-500.0,0.00027397,120]
[402652190,1768745458307,-575.86,0.00027397,120]
[402652191,1768745458316,-500.0,0.00027397,120]
[402652192,1768745458325,-575.86,0.00027397,120]
[402652193,1768745458334,-500.0,0.00027397,120]
[402652194,1768745458343,-500.0,0.00027397,120]
[402652195,1768745458351,-575.86,0.00027397,120]
[402652196,1768745458360,-500.0,0.00027397,120]
[402652197,1768745458369,-995.84,0.00027397,120]
[402652198,1768745458378,-500.0,0.00027397,120]
[402652199,1768745458388,-575.86,0.00027397,120]
[402652200,1768745458397,-500.0,0.00027397,120]
[402652201,1768745458407,-500.0,0.00027397,120]
[402652202,1768745458416,-575.86,0.00027397,120]
[402652203,1768745458425,-995.84,0.00027397,120]
[402652204,1768745458435,-500.0,0.00027397,120]
[402652205,1768745458444,-535.25293351,0.00027397,120]
[402652206,1768745458453,-575.86,0.00027397,120]
[402652207,1768745458461,-500.0,0.00027397,120]
[402652208,1768745458471,-575.86,0.00027397,120]
[402652209,1768745458480,-500.0,0.00027397,120]
[402652210,1768745458490,-575.86,0.00027397,120]
[402652211,1768745458500,-995.84,0.00027397,120]
[402652212,1768745458509,-500.0,0.00027397,120]
[402652213,1768745458518,-575.86,0.00027397,120]
[402652214,1768745458527,-995.84,0.00027397,120]
[402652215,1768745458538,-500.0,0.00027397,120]
[402652216,1768745458548,-575.86,0.00027397,120]
[402652217,1768745458557,-995.84,0.00027397,120]
[402652218,1768745458566,-150.33846417,0.00027397,120]
[402652219,1768745458576,-575.86,0.00027397,120]
[402652220,1768745458586,-995.84,0.00027397,120]
[402652221,1768745458596,-575.86,0.00027397,120]
[402652222,1768745458605,-995.84,0.00027397,120]
[402652223,1768745458615,-575.86,0.00027397,120]
[402652224,1768745458624,-995.84,0.00027397,120]
[402652225,1768745458633,-575.86,0.00027397,120]
[402652226,1768745458643,-995.84,0.00027397,120]
[402652227,1768745458653,-575.86,0.00027397,120]
[402652228,1768745458662,-995.84,0.00027397,120]
[402652229,1768745458683,-995.84,0.00027397,120]
[402652230,1768745458693,-575.86,0.00027397,120]
[402652231,1768745458702,-995.84,0.00027397,120]
[402652232,1768745458711,-575.86,0.00027397,120]
[402652233,1768745458720,-995.84,0.00027397,120]
[402652234,1768745458729,-575.86,0.00027397,120]
[402652235,1768745458753,-675.98,0.00027397,120]
[402652236,1768745458771,-575.86,0.00027397,120]
[402652237,1768745458788,-995.84,0.00027397,120]
[402652238,1768745458800,-675.98,0.00027397,120]
[402652239,1768745458814,-575.86,0.00027397,120]
[402652240,1768745458830,-995.84,0.00027397,120]
[402652241,1768745458845,-576.07001415,0.00027397,120]
[402652242,1768745458860,-675.98,0.00027397,120]
[402652243,1768745458876,-995.84,0.00027397,120]
[402652244,1768745458891,-995.84,0.00027397,120]
[402652245,1768745458905,-675.98,0.00027397,120]
[402652246,1768745458920,-995.84,0.00027397,120]
[402652247,1768745458937,-675.98,0.00027397,120]
[402652248,1768745458952,-995.84,0.00027397,120]
[402652249,1768745458967,-675.98,0.00027397,120]
[402652250,1768745458980,-995.84,0.00027397,120]
[402652251,1768745458993,-675.98,0.00027397,120]
[402652252,1768745459004,-995.84,0.00027397,120]
[402652253,1768745459018,-604.16347465,0.00027397,120]
[402652254,1768745459720,-500.0,0.0002548,2]
[402652255,1768745459733,-71.81652535,0.00027397,120]
[402652256,1768745459746,-995.84,0.00027397,120]
[402652257,1768745459758,-675.98,0.00027397,120]
[402652258,1768745459769,-995.84,0.00027397,120]
[402652259,1768745459781,-675.98,0.00027397,120]
[402652260,1768745459794,-995.93901258,0.00027397,120]
[402652261,1768745459806,-675.98,0.00027397,120]
[402652262,1768745459820,-158.36525401,0.00027397,120]
[402652263,1768745459836,-517.61474599,0.00027397,120]
[402652264,1768745459849,-675.98,0.00027397,120]
[402652265,1768745459862,-675.98,0.00027397,120]
[402652266,1768745459874,-675.98,0.00027397,120]
[402652267,1768745459886,-675.98,0.00027397,120]
[402652268,1768745459898,-675.98,0.00027397,120]
[402652269,1768745459910,-675.98,0.00027397,120]
[402652270,1768745459923,-675.98,0.00027397,120]
[402652271,1768745459936,-675.98,0.00027397,120]
[402652272,1768745459949,-675.98,0.00027397,120]
[402652273,1768745459959,-675.98,0.00027397,120]
[402652274,1768745459969,-675.98,0.00027397,120]
[402652275,1768745459979,-676.14823682,0.00027397,120]
[402652276,1768745459989,-500.0,0.00027397,120]
[402652277,1768745459998,-501.29412743,0.00027397,120]
[402652278,1768745460007,-500.0,0.00027397,120]
[402652279,1768745460017,-298.79944499,0.00027397,120]
[402652280,1768745460026,-542.34,0.00027397,120]
[402652281,1768745460035,-542.34,0.00027397,120]
[402652282,1768745460044,-542.34,0.00027397,120]
[402652283,1768745460053,-500.1162014,0.00027397,120]
[402652284,1768745460062,-542.34,0.00027397,120]
[402652285,1768745460071,-542.34,0.00027397,120]
[402652286,1768745460081,-542.34,0.00027397,120]
[402652287,1768745460090,-542.34,0.00027397,120]
[402652288,1768745460099,-542.34,0.00027397,120]
[402652289,1768745460109,-542.34,0.00027397,120]
[402652290,1768745460118,-542.34,0.00027397,120]
[402652291,1768745460127,-500.0,0.00027397,120]
[402652292,1768745460136,-500.0,0.00027397,120]
[402652293,1768745460146,-542.34,0.00027397,120]
[402652294,1768745460156,-500.0,0.00027397,120]
[402652295,1768745460165,-500.0,0.00027397,120]
[402652296,1768745460175,-542.34,0.00027397,120]
[402652297,1768745460185,-500.0,0.00027397,120]
[402652298,1768745460195,-349.18529843,0.00027397,120]
[402652299,1768745460205,-542.34,0.00027397,120]
[402652300,1768745460215,-500.0,0.00027397,120]
[402652301,1768745460225,-542.34,0.00027397,120]
[402652302,1768745460234,-500.0,0.00027397,120]
[402652303,1768745460244,-542.34,0.00027397,120]
[402652304,1768745460254,-500.0,0.00027397,120]
[402652305,1768745460263,-542.34,0.00027397,120]
[402652306,1768745460273,-500.0,0.00027397,120]
[402652307,1768745460283,-542.34,0.00027397,120]
[402652308,1768745460292,-500.0,0.00027397,120]
[402652309,1768745460302,-542.34,0.00027397,120]
[402652310,1768745460311,-500.0,0.00027397,120]
[402652311,1768745460321,-542.34,0.00027397,120]
[402652312,1768745460332,-500.0,0.00027397,120]
[402652313,1768745460344,-542.34,0.00027397,120]
[402652314,1768745460355,-500.0,0.00027397,120]
[402652315,1768745460365,-542.34,0.00027397,120]
[402652316,1768745460374,-500.0,0.00027397,120]
[402652317,1768745460384,-500.0,0.00027397,120]
[402652318,1768745460393,-542.34,0.00027397,120]
[402652319,1768745460403,-500.0,0.00027397,120]
[402652320,1768745460412,-500.0,0.00027397,120]
[402652321,1768745460422,-542.34,0.00027397,120]
[402652322,1768745460432,-500.0,0.00027397,120]
[402652323,1768745460441,-500.0,0.00027397,120]
[402652324,1768745460450,-542.40110014,0.00027397,120]
[402652325,1768745460460,-500.0,0.00027397,120]
[402652326,1768745460470,-500.0,0.00027397,120]
[402652327,1768745460479,-266.7633194,0.00027397,120]
[402652328,1768745460488,-500.0,0.00027397,120]
[402652329,1768745460498,-500.0,0.00027397,120]
[402652330,1768745460821,-391.38767585,0.00027397,120]
[402652331,1768745460850,-108.61232415,0.00027397,120]
[402652332,1768745460864,-500.0,0.00027397,120]
[402652333,1768745460875,-500.0,0.00027397,120]
[402652334,1768745460884,-500.0,0.00027397,120]
[402652335,1768745460894,-500.0,0.00027397,120]
[402652336,1768745460904,-500.0,0.00027397,120]
[402652337,1768745460913,-342.7573191,0.00027397,120]
[402652338,1768745461128,-17106.21782584,0.00018842,2]
[402652339,1768745461137,-13013.78217416,0.00024767,2]
[402652340,1768745461168,-646.23446986,0.00024767,2]
[402652341,1768745461179,-1365.53921141,0.00024767,2]
[402652342,1768745461190,-16966.79009624,0.00024767,2]
[402652359,1768745640426,536.22042311,0.0001,10]
[402652367,1768746370283,-5000.0,9.702e-05,2]
[402652368,1768746370319,-0.01,9.8e-05,2]
[402652369,1768746370496,-577.467,9.8e-05,2]
[402652370,1768746370526,-178.3513812,9.8e-05,2]
[402652371,1768746370556,-348.41286536,9.801e-05,2]
[402652372,1768746370586,-559.0,9.9e-05,2]
[402652373,1768746370615,-500.0,9.998e-05,2]
[402652374,1768746370644,-538.70319821,9.998e-05,2]
[402652375,1768746370674,-500.0,9.998e-05,2]
[402652376,1768746370706,-500.0,9.998e-05,2]
[402652377,1768746370745,-527.52435675,9.998e-05,2]
[402652378,1768746370784,-500.0,9.998e-05,2]
[402652379,1768746370814,-41.09239696,9.998e-05,2]
[402652380,1768746370922,-458.90760304,9.998e-05,2]
[402652381,1768746370953,-500.0,9.998e-05,2]
[402652382,1768746370988,-500.0,9.998e-05,2]
[402652383,1768746371020,-383.83613113,9.998e-05,2]
[402652384,1768746371054,-500.0,9.998e-05,2]
[402652385,1768746371085,-500.0,9.998e-05,2]
[402652386,1768746371115,-500.0,9.998e-05,2]
[402652387,1768746371145,-466.55629803,9.998e-05,2]
[402652388,1768746371175,-500.0,9.998e-05,2]
[402652389,1768746371205,-500.0,9.998e-05,2]
[402652390,1768746371326,-500.0,9.998e-05,2]
[402652391,1768746371355,-592.36034655,9.998e-05,2]
[402652392,1768746371384,-500.0,9.998e-05,2]
[402652393,1768746371413,-589.48865874,9.998e-05,2]
[402652394,1768746371442,-500.0,9.998e-05,2]
[402652395,1768746375649,2016.63332666,9.999e-05,2]
[402652396,1768746400958,-7983.37667334,9.999e-05,2]
[402652397,1768746400974,-10000.01,9.999e-05,2]
[402652398,1768746400989,-10000.01,9.999e-05,2]
[402652399,1768746401020,-10000.01,9.999e-05,2]
[402652400,1768746500977,1431.02,7.471e-05,2]
[402652401,1768746501106,2862.05,8.15e-05,2]
[402652402,1768746501507,4293.07,8.829e-05,2]
[402652403,1768746511021,-4275.92,9.508e-05,2]
[402652404,1768746511049,-1448.17,9.508e-05,2]
[402652408,1768746518357,200.0,8e-05,7]
[402652409,1768746580401,1248.89,8.251e-05,2]
[402652410,1768746587463,-2497.79,9.001e-05,2]
[402652411,1768746587492,-207.71430093,9.602e-05,2]
[402652412,1768746587523,-842.32139814,9.751e-05,2]
[402652413,1768746587620,-2704.35860186,9.751e-05,2]
[402652414,1768746593373,-200.0,9.751e-05,2]
[402652415,1768746593415,-9600.01,9.899e-05,2]
[402652416,1768746620991,-249.67461348,9.133e-05,2]
[402652417,1768746623495,-279.5779515,9.133e-05,2]
[402652418,1768746626032,-226.04067442,9.133e-05,2]
[402652419,1768746627964,-285.90611961,9.133e-05,2]
[402652420,1768746629408,-212.04275117,9.133e-05,2]
[402652480,1768746638078,-3497.08327634,9.133e-05,2]
[402652481,1768746638088,-300.0,9.225e-05,2]
[402652482,1768746638097,-300.0,9.898e-05,2]
[402652483,1768746638106,-559.0,9.898e-05,2]
[402652484,1768746638115,-100564.93344141,9.899e-05,2]
[402652485,1768746638127,-889835.05655859,9.899e-05,2]
[402652486,1768746638136,-404.44922503,9.999e-05,2]
[402652487,1768746638146,-414.65224258,9.999e-05,2]
[402652488,1768746638155,-500.0,9.999e-05,2]
[402652489,1768746638165,-500.0,9.999e-05,2]
[402652490,1768746638174,-462.64206112,9.999e-05,2]
[402652491,1768746638184,-1929.55605985,0.0001,2]
[402652492,1768746638194,-289.33787783,0.0001,2]
[402652493,1768746638203,-302.30999371,0.0001,7]
[402652494,1768746638212,-1000.0,0.0001,2]
[402652495,1768746638222,-16845.33272611,0.0001,2]
[402652496,1768746638232,-532.51699052,0.0001,2]
[402652497,1768746638242,-26903.14136548,0.0001,2]
[402652498,1768746638251,-500.0,0.000104,2]
[402652499,1768746638263,-500.0,0.000104,2]
[402652500,1768746638272,-500.0,0.000104,2]
[402652501,1768746638281,-500.0,0.000104,2]
[402652502,1768746638294,-500.0,0.000104,2]
[402652503,1768746638304,-500.0,0.000104,2]
[402652504,1768746638314,-500.0,0.000104,2]
[402652505,1768746638323,-500.0,0.000104,2]
[402652506,1768746638332,-500.0,0.000104,2]
[402652507,1768746638341,-500.0,0.000104,2]
[402652508,1768746638351,-500.0,0.000104,2]
[402652509,1768746638361,-500.0,0.000104,2]
[402652510,1768746638370,-500.0,0.000104,2]
[402652511,1768746638379,-500.0,0.000104,2]
[402652512,1768746638389,-800.0,0.000104,2]
[402652513,1768746638399,-4995.57,0.00010501,2]
[402652514,1768746638409,-420.0,0.00010888,2]
[402652515,1768746638418,-6244.47,0.00011252,2]
[402652516,1768746638428,-50008.7634225,0.00011382,2]
[402652517,1768746638438,-587.0,0.00011976,2]
[402652518,1768746638447,-477.25008553,0.00011999,2]
[402652519,1768746638457,-7493.36,0.00012002,2]
[402652520,1768746638467,-263.82610157,0.00012329,2]
[402652521,1768746638476,-1662.0,0.00012693,2]
[402652522,1768746638485,-1662.0,0.00012731,2]
[402652523,1768746638495,-8742.25,0.00012752,2]
[402652524,1768746638504,-1662.0,0.00012836,2]
[402652525,1768746638513,-1662.0,0.00012837,2]
[402652526,1768746638523,-1662.0,0.00012841,2]
[402652527,1768746638533,-1662.0,0.00012853,2]
[402652528,1768746638542,-1662.0,0.0001286,2]
[402652529,1768746638551,-1662.0,0.00012942,2]
[402652530,1768746638560,-1662.0,0.00012971,2]
[402652531,1768746638570,-1662.0,0.00013073,2]
[402652532,1768746638580,-1662.0,0.00013108,2]
[402652533,1768746638589,-1662.0,0.00013135,2]
[402652534,1768746638599,-823.0,0.00013174,2]
[402652535,1768746638608,-1662.0,0.00013213,2]
[402652536,1768746638618,-1662.0,0.00013232,2]
[402652537,1768746638627,-500.0,0.00013273,2]
[402652538,1768746638636,-1662.0,0.00013279,2]
[402652539,1768746638646,-1662.0,0.00013398,2]
[402652540,1768746638655,-1662.0,0.00013409,2]
[402652541,1768746638665,-1662.0,0.00013478,2]
[402652542,1768746638674,-9991.15,0.00013502,2]
[402652543,1768746638685,-1662.0,0.00013586,2]
[402652544,1768746638694,-1662.0,0.00013687,2]
[402652545,1768746638704,-500.0,0.00013699,2]
[402652546,1768746638714,-500.0,0.00013699,2]
[402652547,1768746638723,-2000.0,0.00013699,7]
[402652548,1768746638733,-500.0,0.00013699,2]
[402652549,1768746638742,-500.0,0.00013699,2]
[402652550,1768746638752,-538.92452385,0.00013699,2]
[402652551,1768746638761,-1662.0,0.00013788,2]
[402652552,1768746638770,-1662.0,0.00013801,2]
[402652553,1768746638779,-1000.0,0.00013821,2]
[402652554,1768746638789,-1662.0,0.00013871,2]
[402652555,1768746638798,-1662.0,0.00013922,2]
[402652556,1768746638808,-1662.0,0.00013939,2]
[402652557,1768746638818,-91638.62162171,0.0001399,2]
[402652558,1768746638827,-550.05094604,0.00013999,2]
[402652559,1768746638837,-1000.0,0.00014247,2]
[402652560,1768746638846,-11240.04,0.00014252,2]
[402652561,1768746638855,-1508.44392205,0.00014368,2]
[402652562,1768746638865,-445.202766,0.00014449,2]
[402652563,1768746638875,-2150.738,0.00014449,2]
[402652564,1768746638885,-162.380719,0.00014449,2]
[402652565,1768746638895,-168.3888056,0.00014449,2]
[402652566,1768746638905,-174.61919141,0.00014449,2]
[402652567,1768746638915,-181.08010149,0.00014449,2]
[402652568,1768746638925,-187.78006525,0.00014449,2]
[402652569,1768746638935,-194.72792766,0.00014449,2]
[402652570,1768746638945,-201.93286099,0.00014449,2]
[402652571,1768746638956,-209.40437684,0.00014449,2]
[402652572,1768746638968,-217.15233878,0.00014449,2]
[402652573,1768746638978,-225.18697532,0.00014449,2]
[402652574,1768746638987,-233.51889341,0.00014449,2]
[402652575,1768746638997,-242.15909246,0.00014449,2]